Cogmind - Beta 15 @@@ ROGUE MODE // 2025.09.25 @ 20:41:05 Player: Reflectatory Result: Destroyed by B-75 Beast with Magnetic Acceleration Cannon Performance ------------- Evolutions (5) 2500 Regions Visited (12) 2400 Robots Destroyed (70) 350 Value Destroyed (2449) 2449 Prototype IDs (15) 300 Alien Tech Used (0) 0 Bonus (657) 657 TOTAL SCORE: 8656 Bonus ------- High Alert Combat Kills 317 Follower Combat Kills 1035 Friendly Fire -695 Cogmind --------- Core Integrity 0/1000 Matter 281/300 Energy 100/100 System Corruption 4% Temperature Hot (237) Movement Walking (120) Location -5/Extension Parts ------- > --- POWER (2) -------- (None) > --- PROPULSION (4) --- Flexi-carbon Leg Flexi-carbon Leg Flexi-carbon Leg Myomer Leg > --- UTILITY (6) ------ Advanced Heat Sink Structural Scanner System Shield > --- WEAPON (5) ------- Heavy Laser Beamcaster Wave Gun Gauss Rifle > --- INVENTORY (5) ---- Backup Power III Flexi-carbon Leg Flexi-carbon Leg Wave Gun Chainsword Peak State ------------ > --- POWER ------------ Antimatter Reactor Light Antimatter Reactor > --- PROPULSION ------- Heavy Treads Heavy Treads > --- UTILITY ---------- Advanced Heat Sink Improved Sensor Array Improved Signal Interpreter Precision Matter Filter Improved Light Armor Plating Improved Medium Armor Plating > --- WEAPON ----------- Heavy Laser Advanced Plasma Cannon KE Penetrator Improved KE Penetrator Chainsword > --- INVENTORY -------- Backup Power III Improved Medium Treads Centrium Wheel System Shield Mini Grenade Launcher [Rating: 92] Favorites ----------- Power Antimatter Reactor Engine Light Ion Engine Power Core Neutrino Core Reactor Antimatter Reactor Propulsion Heavy Treads Treads Heavy Treads Leg Flexi-carbon Leg Wheel Compact Wheel Hover Unit Backup Propulsion III Utility Improved Signal Interpreter Device Improved Sensor Array Storage Medium Battery Processor Improved Signal Interpreter Hackware System Shield Protection Improved Light Armor Plating Weapon Small Laser Energy Gun Small Laser Energy Cannon Improved EM Pulse Cannon Ballistic Gun Coil Gun Launcher Mini Grenade Launcher Slashing Weapon Chainsword Piercing Weapon Spear Build | -11 -10 -10 -10 -8 -7 -7 -7 -7 -7 -6 -5 -5 ------- Run | Yrd Mat Min Sub Mat Fac Was Fac Low Low Fac Fac Ext Slots Evolved 10 | . . . . 4 2 . . . . 2 2 . Power 1 | . . . . 1 . . . . . . . . Propulsion 2 | . . . . 1 . . . . . 1 . . Utility 4 | . . . . 2 2 . . . . . . . Weapon 3 | . . . . . . . . . . 1 2 . Parts Attached 86 | 6 . 6 2 15 10 8 . . . 6 2 31 Power 14 | 1 . 2 1 1 3 2 . . . 1 . 3 Engine 7 | 1 . 2 1 1 1 . . . . . . 1 Core 4 | . . . . . 2 . . . . . . 2 Reactor 3 | . . . . . . 2 . . . 1 . . Propulsion 19 | 2 . 2 1 3 . 2 . . . 1 . 8 Treads 5 | . . . . 3 . 1 . . . 1 . . Leg 8 | . . . . . . . . . . . . 8 Wheel 6 | 2 . 2 1 . . 1 . . . . . . Hover . | . . . . . . . . . . . . . Flight . | . . . . . . . . . . . . . Utility 28 | 1 . 1 . 7 4 3 . . . 2 . 10 Device 15 | . . 1 . 1 2 3 . . . . . 8 Storage 2 | 1 . . . 1 . . . . . . . . Processor 2 | . . . . . 2 . . . . . . . Hackware 1 | . . . . . . . . . . . . 1 Protection 8 | . . . . 5 . . . . . 2 . 1 Artifact . | . . . . . . . . . . . . . Weapon 25 | 2 . 1 . 4 3 1 . . . 2 2 10 Energy Gun 12 | 1 . 1 . 2 . 1 . . . . . 7 Energy Cannon 4 | . . . . 2 1 . . . . . 1 . Ballistic Gun 6 | 1 . . . . 1 . . . . 1 1 2 Ballistic Cannon . | . . . . . . . . . . . . . Launcher 1 | . . . . . . . . . . 1 . . Special Weapon . | . . . . . . . . . . . . . Impact Weapon . | . . . . . . . . . . . . . Slashing Weapon 2 | . . . . . 1 . . . . . . 1 Piercing Weapon . | . . . . . . . . . . . . . Special Melee Weapon . | . . . . . . . . . . . . . Unidentified Prototypes 4 | . . . . . 2 1 . . . . 1 . Parts Lost 42 | . . 4 . 5 12 . . . . 2 . 19 Power 8 | . . 1 . . 2 . . . . 1 . 4 Propulsion 7 | . . 1 . 1 3 . . . . . . 2 Utility 13 | . . . . 1 4 . . . . 1 . 7 Weapon 14 | . . 2 . 3 3 . . . . . . 6 Highest Loss Streak 14 | . . 3 . 3 10 . . . . 2 . 14 To Critical Strikes . | . . . . . . . . . . . . . Average Backups 4 | 1 2 4 4 4 4 4 4 4 4 4 5 4 Power . | . 1 1 1 1 . 1 1 1 1 1 1 . Propulsion 1 | . . 1 1 . . . 1 1 1 1 2 1 Utility 1 | . . . . 1 2 1 1 1 1 1 1 . Weapon 1 | . 1 1 1 1 1 1 1 1 1 1 1 1 Tool/Special . | . . . . . . . . . . . . . Unused Backups 7 | . . 2 2 1 1 . . . . . . 1 Power . | . . . . . . . . . . . . . Propulsion 4 | . . 2 1 . . . . . . . . 1 Utility 1 | . . . 1 . . . . . . . . . Weapon 2 | . . . . 1 1 . . . . . . . Tool/Special . | . . . . . . . . . . . . . Average Slot Usage (%) 82 | . 85 80 85 86 72 79 92 92 92 85 84 80 Engine 8 | . 14 14 14 17 10 7 7 7 7 . . . Reactor 4 | . . . . . . 4 7 7 7 13 11 7 Treads 9 | . . . . 24 16 1 7 7 7 12 11 7 Leg 1 | . . . . . . . . . . . . 6 Wheel 8 | . 28 25 28 2 . 4 7 7 7 . . . Device 15 | . . 12 14 10 9 23 30 30 30 24 17 15 Storage 3 | . 14 1 . 6 . 4 7 7 7 4 . . Processor 3 | . . . . . 13 7 7 7 7 6 5 3 Protection 4 | . . . . 8 5 . . . . 2 11 7 Energy Gun 11 | . 14 14 28 5 5 13 15 15 15 10 5 8 Energy Cannon 2 | . . . . 10 . . . . . . 3 3 Ballistic Gun 4 | . 14 11 . . . . . . . 5 9 7 Launcher 1 | . . . . . . . . . . 1 5 3 Peak Build Rating 92 | 6 6 14 15 27 38 62 62 62 66 76 86 92 Average Rating 43 | 4 6 12 13 23 26 46 62 62 62 74 82 77 On Entrance 37 | . 6 6 14 13 26 8 62 62 62 66 73 86 Naked Turns 36 | . . . . . . . . . . . . 36 Heaviest Build 72 | 10 10 10 11 36 33 36 36 36 50 55 65 72 Greatest Support 140 | 26 26 32 36 60 60 70 70 70 70 140 140 140 Greatest Overweight (x) 2 | . . . . 1 1 2 . . . . . . Average Overweight (x) . | . . . . . . 1 . . . . . . Largest Inventory Capacity 8 | 8 8 8 5 5 5 5 5 5 5 5 5 5 Average Capacity 5 | 6 8 5 5 5 5 5 5 5 5 5 5 5 Most Carried 5 | 2 5 5 5 5 5 5 5 5 5 5 5 5 Average Carried 4 | 1 2 4 4 4 4 4 5 5 5 4 5 4 Final Capacity 8 | 8 8 5 5 5 5 5 5 5 5 5 5 5 Final Carried 5 | 2 5 5 5 5 5 5 5 5 5 5 5 5 Class Distribution -------------------- 30% | Scavenger-Tank 26% | Mutant 15% | Scavenger-Mutant 13% | Scrapper 5% | Scavenger-Assassin 4% | Scavenger-Scrapper Dominant Class ---------------- Mutant | -10/Materials Scrapper | -10/Mines Scrapper | -10/Subcaves Scavenger-Mutant | -8/Materials Scavenger-Assassin | -7/Factory Mutant | -7/Waste Mutant | -7/Factory Mutant | -7/Lower Caves Mutant | -7/Lower Caves Scavenger-Tank | -6/Factory Scavenger-Tank | -5/Factory Scavenger-Tank | -5/Extension Resources | -11 -10 -10 -10 -8 -7 -7 -7 -7 -7 -6 -5 -5 ----------- Run | Yrd Mat Min Sub Mat Fac Was Fac Low Low Fac Fac Ext Matter Collected 1607 | 215 20 132 24 199 41 143 . 20 6 112 49 646 Remotely . | . . . . . . . . . . . . . Salvage Created 3135 | . 54 444 . 836 41 . . . . 277 182 1301 Parts 147 | . 6 25 . 44 3 . . . . 7 5 57 Haulers Intercepted . | . . . . . . . . . . . . . Recyclers Shooed . | . . . . . . . . . . . . . Parts Field Recycled . | . . . . . . . . . . . . . Retrieved Matter . | . . . . . . . . . . . . . Parts Self-Destructed 21 | . . . 16 . . . . 5 . . . . Prevented 1 | . . . . . . . . 1 . . . . Kills | -11 -10 -10 -10 -8 -7 -7 -7 -7 -7 -6 -5 -5 ------- Run | Yrd Mat Min Sub Mat Fac Was Fac Low Low Fac Fac Ext Combat Hostiles Destroyed 56 | . 3 12 . 15 3 . . . . 3 4 16 Guns 42 | . 3 12 . 7 3 . . . . 1 2 14 Cannons 5 | . . . . 4 . . . . . . 1 . AOE 6 | . . . . 1 . . . . . 2 1 2 Classes Destroyed 13 | . 1 3 . 4 . . . . . 2 1 2 Builder 2 | . . . . . . . . . . . . 2 Tunneler 1 | . . 1 . . . . . . . . . . Recycler 6 | . . 2 . 1 . . . . . 1 . 2 Watcher 2 | . . . . 1 . . . . . . . 1 Swarmer 20 | . 3 9 . 3 3 . . . . . 2 . Grunt 19 | . . 3 . 5 . . . . . 2 2 7 Brawler 1 | . . . . 1 . . . . . . . . Duelist 1 | . . . . . . . . . . . . 1 Sentry 9 | . . . . 5 . . . . . . . 4 Demolisher 1 | . . . . . . . . . . 1 . . Hunter 3 | . . . . 1 . . . . . . . 2 Behemoth 1 | . . . . . . . . . . . . 1 Surgeon 1 | . . . . . . . . . . 1 . . Wasp 1 | . . . . . . . . . . 1 . . Thug 1 | . . . . . . . . . . . . 1 Butcher 1 | . . . . . . . . . . . 1 . Best Kill Streak 6 | . 3 6 . 6 2 . . . . 2 2 5 Combat Bots Only 6 | . 3 6 . 6 2 . . . . 2 2 4 Max Kills in Single Turn 3 | . 1 1 . 2 1 . . . . 2 2 3 Gunslinging . | . . . . . . . . . . . . . Exploded 2 | . . . . 1 . . . . . 1 1 2 Melee . | . . . . . . . . . . . . . Uniques/NPCs Destroyed . | . . . . . . . . . . . . . Combat | -11 -10 -10 -10 -8 -7 -7 -7 -7 -7 -6 -5 -5 -------- Run | Yrd Mat Min Sub Mat Fac Was Fac Low Low Fac Fac Ext Hostile Shots Fired 472 | . 14 77 3 82 124 . . . . 20 9 143 Missed 101 | . 3 14 3 19 28 . . . . 8 3 23 Hits 371 | . 11 63 . 63 96 . . . . 12 6 120 Melee 11 | . . . . . 9 . . . . 2 . . Projectile 360 | . 11 63 . 63 87 . . . . 10 6 120 Critical Strikes 14 | . . 3 . 3 3 . . . . . . 5 Damage Taken 7467 | . 105 727 . 936 1642 . . . . 627 86 3344 Core 1890 | . 32 145 . 96 589 . . . . . 12 1016 Absorbed by Shields . | . . . . . . . . . . . . . Reduced by Siege Mode 24 | . . . . . . . . . . . . 24 Regen/Repaired (Parts) 294 | . . 32 27 30 41 145 . . . 19 . . Core Remaining (%) 65 | 100 . . 29 82 . . . . 15 100 . . Volleys Fired 228 | . 6 68 . 40 33 3 . 1 . 15 6 56 Largest 5 | . 2 2 . 2 1 2 . 2 . 3 5 5 Hottest 334 | . 60 60 . 138 65 105 . 105 . 135 231 334 Shots Fired 488 | . 12 110 . 71 33 6 1 4 . 39 25 187 Gun 388 | . 12 110 . 34 30 6 1 4 . 36 18 137 Cannon 81 | . . . . 37 3 . . . . . 6 35 Launcher 19 | . . . . . . . . . . 3 1 15 Special . | . . . . . . . . . . . . . Kinetic 154 | . 6 42 . . . . . . . 15 12 79 Thermal 263 | . 6 68 . 34 30 2 1 3 . 14 12 93 Explosive 19 | . . . . . . . . . . 3 1 15 Electromagnetic 52 | . . . . 37 3 4 . 1 . 7 . . Robot Hit Streak 19 | . 4 14 . 11 9 2 . 2 . 5 3 19 Robot Miss Streak 13 | . 1 5 . 5 13 1 2 2 . 5 4 5 Penetration Max 1 | . . . . . . . . . . 1 1 1 Secondary Targets 6 | . 2 1 . 2 . . . . . . . 1 Max Gunslinging Chain 1 | . 1 1 . 1 . . . . . . . 1 Shots Hit Robots 258 | . 8 64 . 47 29 4 . 2 . 16 8 80 Core Hits 167 | . 3 23 . 25 29 1 . . . 18 6 62 Critical Kills 1 | . . . . . . . . . . . . 1 Critical Parts Destroyed 6 | . . . . . . . . . . 1 . 5 Critical Strikes 11 | . . . . 1 . . . . . 1 . 9 Burn 1 | . . . . . . . . . . . . 1 Destroy 9 | . . . . . . . . . . 1 . 8 Corrupt 1 | . . . . 1 . . . . . . . . Melee Attacks 10 | . . . . . 4 . . . . . . 6 Impact . | . . . . . . . . . . . . . Slashing 10 | . . . . . 4 . . . . . . 6 Piercing . | . . . . . . . . . . . . . Sneak Attacks . | . . . . . . . . . . . . . Combat Hostiles . | . . . . . . . . . . . . . Follow-up Attacks . | . . . . . . . . . . . . . Damage Inflicted 6545 | . 70 669 . 1171 381 41 14 42 . 696 443 3018 Guns 3986 | . 70 660 . 281 286 41 14 42 . 395 221 1976 Cannons 1519 | . . . . 797 . . . . . . 133 589 Explosions 904 | . . . . 89 . . . . . 301 89 425 Melee 81 | . . . . . 81 . . . . . . . Ramming 55 | . . 9 . 4 14 . . . . . . 28 Kinetic 1927 | . 38 138 . . . . . . . 216 159 1376 Thermal 2775 | . 32 522 . 370 286 28 14 27 . 112 195 1189 Explosive 815 | . . . . . . . . . . 301 89 425 Electromagnetic 892 | . . . . 797 . 13 . 15 . 67 . . Impact . | . . . . . . . . . . . . . Slashing 81 | . . . . . 81 . . . . . . . Piercing . | . . . . . . . . . . . . . Highest Corruption 20 | . 1 1 1 . 20 20 20 20 20 6 . 4 Average Corruption 8 | . 1 1 1 . 18 20 20 20 20 6 . 4 Corruption Purged . | . . . . . . . . . . . . . Corruption Blocked . | . . . . . . . . . . . . . Effects 78 | . . 6 4 . 11 18 2 16 3 5 . 13 Message Errors 18 | . . 1 . . 1 4 . 4 . 2 . 6 Matter Fused 16 | . . 2 . . 1 4 . 3 . 1 . 5 Heat Flow Errors 10 | . . 1 1 . 1 3 1 2 . . . 1 Energy Discharges 9 | . . . . . 1 2 . 3 2 . . 1 Parts Rejected 1 | . . . . . 1 . . . . . . . Parts Fused 2 | . . . . . . . . 1 1 . . . Data Loss (minor) 8 | . . 1 2 . 1 2 . . . 2 . . Data Loss (major) 2 | . . . . . . 1 . 1 . . . . Misfires 5 | . . 1 . . . 1 1 2 . . . . Alerts 1 | . . . 1 . . . . . . . . . Misdirections 5 | . . . . . 5 . . . . . . . Weapon Failures 1 | . . . . . . 1 . . . . . . Overload Shots . | . . . . . . . . . . . . . Overflow Damage 46 | . . . . 23 . . . . . . 23 . Projectiles 22 | . . . . 22 . . . . . . . . Explosions 24 | . . . . 1 . . . . . . 23 . Melee . | . . . . . . . . . . . . . Knockbacks . | . . . . . . . . . . . . . Impact . | . . . . . . . . . . . . . Kinetic . | . . . . . . . . . . . . . Secondary . | . . . . . . . . . . . . . Self-Inflicted Damage 47 | . . 4 . . 7 . . . . . . 36 Shots 1 | . . . . . . . . . . . . 1 Rammed 7 | . . 1 . 1 3 . . . . . . 2 Targets Rammed 8 | . . 1 . 1 3 . . . . . . 3 Kicked 1 | . . . . . . . . . . . . 1 Crushed . | . . . . . . . . . . . . . Highest Temperature 980 | . 46 222 204 515 457 257 173 273 . 351 541 980 Average Temperature 174 | . 26 95 104 161 204 80 80 89 . 145 200 256 Received Heat Transfer 1574 | . 30 366 . 441 . . . . . 119 . 618 Effects 61 | . . . . 14 6 . . 1 . 1 6 33 Shutdowns 22 | . . . . 4 4 . . . . . 3 11 Energy Bleed 13 | . . . . 3 1 . . 1 . 1 1 6 Interference 16 | . . . . 3 1 . . . . . 1 11 Matter Decay 2 | . . . . 1 . . . . . . . 1 Damage (minor) 1 | . . . . 1 . . . . . . . . Damage (major) 3 | . . . . 2 . . . . . . 1 . Damage (core) 4 | . . . . . . . . . . . . 4 Siege Activations 7 | . . . . . . 1 . . . . . 6 Total Turns 44 | . . . . . . 1 . . . . . 43 Longest Duration 10 | . . . . . . 1 . . . . . 10 Martial Activations . | . . . . . . . . . . . . . Shielding Activations . | . . . . . . . . . . . . . Robots Disrupted . | . . . . . . . . . . . . . Combat Hostiles . | . . . . . . . . . . . . . Robots Corrupted 3 | . . . . 3 . . . . . . . . Combat Hostiles 3 | . . . . 3 . . . . . . . . Parts Fried 8 | . . . . 8 . . . . . . . . Impact Corruptions . | . . . . . . . . . . . . . Robots Melted . | . . . . . . . . . . . . . Combat Hostiles . | . . . . . . . . . . . . . Parts Melted 5 | . . . . . . . . . . . 1 4 Heat Transferred 5413 | . 75 1200 . 749 365 74 37 74 . 333 385 2121 Parts Sabotaged . | . . . . . . . . . . . . . Parts Stolen . | . . . . . . . . . . . . . Parts Stripped . | . . . . . . . . . . . . . Power Chain Reactions 1 | . . . . 1 . . . . . . . . Alert | -11 -10 -10 -10 -8 -7 -7 -7 -7 -7 -6 -5 -5 ------- Run | Yrd Mat Min Sub Mat Fac Was Fac Low Low Fac Fac Ext Maximum Alert Level 3 | . . . . . . . . . . 3 3 2 Low Security (%) 61 | 100 100 100 . 100 100 100 100 . . 32 . . Level 1 5 | . . . . . . . . . . 32 14 3 Level 2 28 | . . . . . . . . . . 8 60 96 Level 3 4 | . . . . . . . . . . 25 24 . Level 4 . | . . . . . . . . . . . . . Level 5 . | . . . . . . . . . . . . . High Security . | . . . . . . . . . . . . . Max Security . | . . . . . . . . . . . . . Peak Influence 829 | . 100 150 . 164 46 . . . . 829 744 669 Initial 391 | . . 34 . . 46 . . . . 22 391 344 Average 226 | . 13 66 . 66 8 . . . . 374 596 511 Influence Increases 3858 | . 134 325 . 544 70 . . 160 . 1197 513 915 Destroy 0b10 Robot/C 1760 | . 60 240 . 300 60 . . 60 . 380 180 480 Destroy 0b10 Robot/NC 75 | . . 15 . 10 . . . . . 25 . 25 Destroy Leader 318 | . 10 40 . 92 10 . . 20 . 74 20 52 Allied During Kill 689 | . . . . . . . . 80 . 396 61 152 Successful Hack 30 | . 4 . . 19 . . . . . . . 7 Disable Machine 120 | . . . . . . . . . . 60 30 30 Anti-Garrison Action 350 | . . . . . . . . . . 150 200 . Destroy Structure 261 | . . . . 3 . . . . . 112 22 124 Lose Combat Pursuer 255 | . 60 30 . 120 . . . . . . . 45 Influence Decreases 3471 | . 44 350 65 441 173 . . 90 34 434 608 1232 Entered New Map 943 | . . 56 34 . 57 . . . 14 14 408 360 Time Decay 1719 | . 44 254 31 322 96 . . 90 20 240 140 482 Lost Part 320 | . . 40 . 50 20 . . . . 20 . 190 Lost Ally 420 | . . . . . . . . . . 160 60 200 Purge Threat 69 | . . . . 69 . . . . . . . . Squads Dispatched 14 | . 2 . . 1 . . . . . 5 2 4 Investigation 5 | . 2 . . . . . . . . . 2 1 Extermination 1 | . . . . . . . . . . 1 . . Reinforcement 5 | . . . . 1 . . . . . 1 . 3 Assault 2 | . . . . . . . . . . 2 . . Garrison 1 | . . . . . . . . . . 1 . . Intercept . | . . . . . . . . . . . . . Searches Triggered . | . . . . . . . . . . . . . Construction Impeded 1 | . . . . . . . . . . . . 1 Haulers Reinforced 1 | . . . . . . . . . . 1 . . Active Scanning Responses . | . . . . . . . . . . . . . Cargo Convoy Interrupts . | . . . . . . . . . . . . . Stealth | -11 -10 -10 -10 -8 -7 -7 -7 -7 -7 -6 -5 -5 --------- Run | Yrd Mat Min Sub Mat Fac Was Fac Low Low Fac Fac Ext Distress Signals 4 | . 1 . . 1 . . . . . 1 . 1 Communications Jammed . | . . . . . . . . . . . . . Distress Signals . | . . . . . . . . . . . . . Times Spotted 147 | . 11 15 2 23 6 2 . 2 . 38 9 39 Peak Tracking Total 7 | . 6 6 2 6 3 1 . 1 . 5 5 7 Tactical Retreats 8 | . 1 1 . 3 . . . . . . . 3 Traps | -11 -10 -10 -10 -8 -7 -7 -7 -7 -7 -6 -5 -5 ------- Run | Yrd Mat Min Sub Mat Fac Was Fac Low Low Fac Fac Ext Traps Triggered 7 | . 1 . . . 2 . . . . 3 . 1 Indirectly . | . . . . . . . . . . . . . Trap Hack Attempts . | . . . . . . . . . . . . . Triggered . | . . . . . . . . . . . . . Disarmed . | . . . . . . . . . . . . . Reprogrammed . | . . . . . . . . . . . . . Reused . | . . . . . . . . . . . . . Traps Extracted . | . . . . . . . . . . . . . Installed . | . . . . . . . . . . . . . Triggered . | . . . . . . . . . . . . . Machines | -11 -10 -10 -10 -8 -7 -7 -7 -7 -7 -6 -5 -5 ---------- Run | Yrd Mat Min Sub Mat Fac Was Fac Low Low Fac Fac Ext Machines Disabled 10 | . . . . . . . . . . 5 2 3 Max in Single Turn 2 | . . . . . . . . . . . 2 1 Garrison Access 2 | . . . . . . . . . . 1 1 . Machines Repaired . | . . . . . . . . . . . . . Machines Dismantled . | . . . . . . . . . . . . . Machines Sabotaged . | . . . . . . . . . . . . . Overloaded Fab Kills . | . . . . . . . . . . . . . Hacking | -11 -10 -10 -10 -8 -7 -7 -7 -7 -7 -6 -5 -5 --------- Run | Yrd Mat Min Sub Mat Fac Was Fac Low Low Fac Fac Ext Machines Accessed 21 | . 3 1 1 9 3 . . . . . 2 2 Terminals 15 | . 3 . . 8 2 . . . . . . 2 Fabricators 2 | . . . . . 1 . . . . . 1 . Repair Stations . | . . . . . . . . . . . . . Recycling Units 1 | . . . . 1 . . . . . . . . Scanalyzers . | . . . . . . . . . . . . . Garrison Access 1 | . . . . . . . . . . . 1 . Total Hacks 58 | . 8 1 9 26 4 . . . . . 4 6 Successful 33 | . 3 1 9 16 1 . . . . . 1 2 Failed 25 | . 5 . . 10 3 . . . . . 3 4 Catastrophic 6 | . 2 . . 1 1 . . . . . 2 . Database Lockouts . | . . . . . . . . . . . . . Manual 37 | . 8 . . 26 2 . . . . . 1 . Terminals 42 | . 8 . . 25 3 . . . . . . 6 Fabricators 3 | . . . . . 1 . . . . . 2 . Repair Stations . | . . . . . . . . . . . . . Recycling Units 1 | . . . . 1 . . . . . . . . Scanalyzers . | . . . . . . . . . . . . . Garrison Access 2 | . . . . . . . . . . . 2 . Terminal Hacks 18 | . 1 1 9 4 1 . . . . . . 2 Record 8 | . . . 8 . . . . . . . . . Open Door 3 | . . 1 . . . . . . . . . 2 Open DSF 1 | . . . . . 1 . . . . . . . Terminal Index 2 | . 1 . . 1 . . . . . . . . Unreport Threat 2 | . . . . 2 . . . . . . . . Zone Layout 1 | . . . . 1 . . . . . . . . Proto ID Catalog 1 | . . . 1 . . . . . . . . . Fabricator Hacks . | . . . . . . . . . . . . . Repair Station Hacks . | . . . . . . . . . . . . . Recycling Unit Hacks . | . . . . . . . . . . . . . Scanalyzer . | . . . . . . . . . . . . . Garrison Access Hacks . | . . . . . . . . . . . . . Unauthorized Hacks 15 | . 2 . . 12 . . . . . . 1 . Terminals 14 | . 2 . . 12 . . . . . . . . Track 4 | . . . . 4 . . . . . . . . Botnet 10 | . 2 . . 8 . . . . . . . . Fabricators . | . . . . . . . . . . . . . Repair Stations . | . . . . . . . . . . . . . Recycling Units . | . . . . . . . . . . . . . Scanalyzers . | . . . . . . . . . . . . . Garrison Access 1 | . . . . . . . . . . . 1 . Jam 1 | . . . . . . . . . . . 1 . Data Cores Recovered . | . . . . . . . . . . . . . Used . | . . . . . . . . . . . . . Hacking Detections 17 | . 3 . . 7 3 . . . . . 2 2 Full Trace Events 4 | . 2 . . . . . . . . . 1 1 Feedback Events 1 | . 1 . . . . . . . . . . . Corruption 1 | . 1 . . . . . . . . . . . Feedback Blocked . | . . . . . . . . . . . . . Robot Schematics Acquired . | . . . . . . . . . . . . . Robots Built . | . . . . . . . . . . . . . Authchips . | . . . . . . . . . . . . . Time . | . . . . . . . . . . . . . Total Robot Build Rating . | . . . . . . . . . . . . . Part Schematics Acquired . | . . . . . . . . . . . . . Parts Built . | . . . . . . . . . . . . . Authchips . | . . . . . . . . . . . . . Time . | . . . . . . . . . . . . . Total Part Build Rating . | . . . . . . . . . . . . . Parts Repaired . | . . . . . . . . . . . . . Time . | . . . . . . . . . . . . . Parts Recycled . | . . . . . . . . . . . . . Recycled Matter . | . . . . . . . . . . . . . Retrieved Matter . | . . . . . . . . . . . . . Retrieved Components . | . . . . . . . . . . . . . Parts Scanalyzed . | . . . . . . . . . . . . . Part Schematics Acquired . | . . . . . . . . . . . . . Parts Damaged . | . . . . . . . . . . . . . Bothacking | -11 -10 -10 -10 -8 -7 -7 -7 -7 -7 -6 -5 -5 ------------ Run | Yrd Mat Min Sub Mat Fac Was Fac Low Low Fac Fac Ext Used RIF Installer . | . . . . . . . . . . . . . Robots Hacked . | . . . . . . . . . . . . . Non-combat . | . . . . . . . . . . . . . Combat . | . . . . . . . . . . . . . Robot Hacks Applied . | . . . . . . . . . . . . . Relay Couplers Released 2 | . . . . . . . . . . 2 . . Machine Destruction 2 | . . . . . . . . . . 2 . . Fabnet Peak Effective % . | . . . . . . . . . . . . . Robots Rewired 6 | . . . . . . . . . . . . 6 Allies Hacked . | . . . . . . . . . . . . . Hacks Repelled . | . . . . . . . . . . . . . Allies | -11 -10 -10 -10 -8 -7 -7 -7 -7 -7 -6 -5 -5 -------- Run | Yrd Mat Min Sub Mat Fac Was Fac Low Low Fac Fac Ext Total Allies 29 | . . . . . . 20 . . . . . 9 Largest Group 20 | . . . . . . 20 19 19 19 19 6 9 Highest-Rated Group 493 | . . . . . . 493 478 478 478 478 174 252 Highest-Rated Ally 39 | . . . . . . 35 35 35 35 35 31 39 Total Orders . | . . . . . . . . . . . . . Ally Attacks 333 | . . . . . . 43 . 28 . 166 32 64 Total Damage 6181 | . . . . . . 609 . 186 . 3733 481 1172 Kills 55 | . . . . . . 2 . 3 . 37 5 8 Allies Corrupted 1 | . . . . . . . . . . 1 . . Allies Melted . | . . . . . . . . . . . . . Intel | -11 -10 -10 -10 -8 -7 -7 -7 -7 -7 -6 -5 -5 ------- Run | Yrd Mat Min Sub Mat Fac Was Fac Low Low Fac Fac Ext Active Infowar (turns) 3010 | . . . . . 403 238 55 321 50 602 283 1058 Sensors 2663 | . . . . . 319 238 55 321 50 602 283 795 Terrain 168 | . . . . . . . . . . . . 168 Structural 259 | . . . . . . . . . . . . 259 Machine Analysis 403 | . . . . . 403 . . . . . . . Robot Analysis Total . | . . . . . . . . . . . . . Derelict Logs Recovered 2 | . . 1 . . . . . 1 . . . . Drone Launches . | . . . . . . . . . . . . . Drone Recoveries . | . . . . . . . . . . . . . Exploration | -11 -10 -10 -10 -8 -7 -7 -7 -7 -7 -6 -5 -5 ------------- Run | Yrd Mat Min Sub Mat Fac Was Fac Low Low Fac Fac Ext Turns Passed 5899 | 62 365 695 444 915 516 338 55 321 50 602 283 1253 Spaces Moved 3513 | 59 174 529 422 479 332 215 25 186 20 340 139 593 Core 250 | 4 . . . . 125 58 . . . . . 63 Treads 1682 | . . . . 450 207 33 25 186 20 340 139 282 Legs 248 | . . . . . . . . . . . . 248 Wheels 1310 | 55 174 529 422 29 . 101 . . . . . . Hover 23 | . . . . . . 23 . . . . . . Flight . | . . . . . . . . . . . . . Fastest Speed 50 | 50 90 90 100 100 50 50 160 160 160 160 160 50 Average Speed 127 | 86 90 91 102 156 126 116 160 160 160 160 160 131 Slowest Speed 240 | 90 90 100 105 240 160 236 160 160 160 160 160 160 Overloaded Moves . | . . . . . . . . . . . . . Propulsion Burnouts . | . . . . . . . . . . . . . Robots Hopped . | . . . . . . . . . . . . . Potential Cave-ins . | . . . . . . . . . . . . . Cave-ins Triggered 1 | . . . . . . . . . . 1 . . Exploration Rate (%) 32 | 4 39 86 35 49 8 85 1 40 3 14 7 47 Regions Visited 12 Branch Regions 5 Pre-discovered Areas . | . . . . . . . . . . . . . Known Exits Taken 5 | . . . . . . . 1 1 1 1 1 . Unknown Exits Taken 5 | 1 1 1 1 1 . . . . . . . . Scrap Searched 5 | . . 1 2 . . . . 1 1 . . . Spaces Dug 38 | . . . . . . . . . . . . 38 Terrain Destroyed 139 | . . . . 3 . . . . . 7 10 119 Melee . | . . . . . . . . . . . . . Projectile 12 | . . . . . . . . . . . . 12 AOE 127 | . . . . 3 . . . . . 7 10 107 Terrain Rammed . | . . . . . . . . . . . . . Walls Destroyed . | . . . . . . . . . . . . . Machines Disabled . | . . . . . . . . . . . . . Actions | -11 -10 -10 -10 -8 -7 -7 -7 -7 -7 -6 -5 -5 --------- Run | Yrd Mat Min Sub Mat Fac Was Fac Low Low Fac Fac Ext Total 4526 | 66 371 638 434 571 387 296 40 208 38 365 183 929 Wait 515 | . 189 28 4 21 . 65 16 21 18 1 37 115 Move 3502 | 58 173 528 421 478 332 214 24 185 19 339 138 593 Hop . | . . . . . . . . . . . . . Pick Up 22 | 2 3 2 1 6 3 1 . . . 2 . 2 Fast Attach 44 | 6 . 3 . 7 3 5 . . . 3 2 15 Attach 12 | . . 1 . 2 3 2 . . . 1 . 3 Detach . | . . . . . . . . . . . . . Swap 42 | . . 3 4 8 4 2 . . 1 2 . 18 Drop 34 | . . 4 4 8 2 4 . . . 1 . 11 Fire 228 | . 6 68 . 40 33 3 . 1 . 15 6 56 Melee 10 | . . . . . 4 . . . . . . 6 Ram 5 | . . 1 . . 3 . . . . . . 1 Kick 1 | . . . . . . . . . . . . 1 Crush 2 | . . . . 1 . . . . . . . 1 Escape Stasis 15 | . . . . . . . . . . . . 15 Rewire 94 | . . . . . . . . 1 . 1 . 92 Trap . | . . . . . . . . . . . . . Miscellaneous . | . . . . . . . . . . . . . Route ------- -11/Scrapyard -10/Materials -10/Mines (discovered 3 exits: *Mat x2 / *Sub) -10/Subcaves -8/Materials (discovered 2 exits: *Fac / [*Sto]) -7/Factory -7/Waste -7/Factory -7/Lower Caves -7/Lower Caves -6/Factory -5/Factory (discovered 2 exits: Upp / *Ext) -5/Extension History --------- Turn | Location | Event 32 | -11/Scrapyard | Discovered new exit (range 16) 63 | -11/Scrapyard | Entered Materials 311 | -10/Materials | Build established: Mutant 411 | -10/Materials | Discovered new exit (range 8) 428 | -10/Materials | Entered Mines 493 | -10/Mines | Found a Scrap Suit stashed away for nefarious purposes 496 | -10/Mines | Found Scrap Suit 592 | -10/Mines | Identified exit to Materials 787 | -10/Mines | Build established: Scrapper 851 | -10/Mines | Found the Drone Emporium 854 | -10/Mines | Found Prototype Device 899 | -10/Mines | Discovered exit to Materials (range 10) 952 | -10/Mines | Core integrity fell below 50% 1006 | -10/Mines | Lost 3 parts (1n2w) 1118 | -10/Mines | Discovered new exit (range 6) 1123 | -10/Mines | Entered Subcaves 1183 | -10/Subcaves | Visited 4L-MR0's lab 1347 | -10/Subcaves | Discovered new exit (range 15) 1567 | -10/Subcaves | Entered Materials 1567 | -8/Materials | Evolved 4 slots: Power x1, Propulsion x1, Utility x2 1664 | -8/Materials | Lost 3 parts (1n1u1w) 1930 | -8/Materials | Build established: Scavenger-Mutant 1965 | -8/Materials | Discovered new exit (range 16) 2453 | -8/Materials | Discovered new exit (range 9) 2482 | -8/Materials | Entered Factory 2482 | -7/Factory | Evolved 2 slots: Utility x2 2887 | -7/Factory | System corruption reached 10% 2901 | -7/Factory | Core integrity fell below 50% 2955 | -7/Factory | Lost 10 parts (2p2n3u3w) 2982 | -7/Factory | Core integrity fell below 20% 2998 | -7/Factory | Sucked down chute 2998 | -7/Factory | Entered Waste 2999 | -7/Waste | Joined by Warlord forces that had cleared the area 3178 | -7/Waste | A Compactor rumbled back to life 3180 | -7/Waste | Allies destroyed C-40 Crusher 3181 | -7/Waste | Discovered new exit (range 12) 3186 | -7/Waste | Build established: Mutant 3212 | -7/Waste | Identified exit to Factory 3248 | -7/Waste | A Compactor rumbled back to life 3254 | -7/Waste | Allies destroyed C-40 Crusher 3336 | -7/Waste | Entered Factory 3336 | -7/Factory | Accompanied by 19 allies 3346 | -7/Factory | Discovered new exit (range 11) 3364 | -7/Factory | Identified exit to Lower Caves 3391 | -7/Factory | Entered Lower Caves 3391 | -7/Lower Caves | Accompanied by 19 allies 3507 | -7/Lower Caves | Entered a destroyed Warlord outpost 3574 | -7/Lower Caves | Encountered a Warlord checkpoint 3680 | -7/Lower Caves | Discovered new exit (range 8) 3688 | -7/Lower Caves | Identified exit to Lower Caves 3712 | -7/Lower Caves | Entered another Lower Caves area 3712 | -7/Lower Caves | Accompanied by 19 allies 3727 | -7/Lower Caves | Discovered new exit (range 9) 3740 | -7/Lower Caves | Identified exit to Factory 3762 | -7/Lower Caves | Entered Factory 3762 | -6/Factory | Accompanied by 19 allies 3762 | -6/Factory | Evolved 2 slots: Propulsion x1, Weapon x1 3937 | -6/Factory | Lost 3 allies 3992 | -6/Factory | Lost 3 allies 4060 | -6/Factory | Build established: Scavenger-Tank 4155 | -6/Factory | Assembled infested ambush trap array 4162 | -6/Factory | Garrison activated, responded to threat 4206 | -6/Factory | Lost 4 allies 4241 | -6/Factory | Crushed by falling debris 4284 | -6/Factory | Discovered new exit (range 16) 4355 | -6/Factory | Identified exit to Factory 4364 | -6/Factory | Entered another Factory area 4364 | -5/Factory | Accompanied by 6 allies 4364 | -5/Factory | Evolved 2 slots: Weapon x2 4365 | -5/Factory | Identified exit to Upper Caves 4616 | -5/Factory | Discovered new exit (range 12) 4632 | -5/Factory | Identified exit to Extension 4647 | -5/Factory | Entered Extension 4647 | -5/Extension | Accompanied by 2 allies 5206 | -5/Extension | Rescued a captive Derelict 5326 | -5/Extension | Rescued a captive Derelict 5327 | -5/Extension | Rescued a captive Derelict 5416 | -5/Extension | Spotted B-75 Beast 5433 | -5/Extension | Destroyed B-75 Beast 5445 | -5/Extension | Spotted B-75 Beast 5461 | -5/Extension | Core integrity fell below 50% 5474 | -5/Extension | Core integrity fell below 20% 5507 | -5/Extension | Lost 3 allies 5510 | -5/Extension | Lost 14 parts (2p2n5u5w) 5897 | -5/Extension | Disrupted transfer network 5900 | -5/Extension | Destroyed by B-75 Beast with Magnetic Acceleration Cannon Last Messages --------------- Imp. Reaction Control System blasted off. Adv. Heat Sink destroyed. Imp. Light Armor Plating destroyed. Y-64 Sentinel destroyed. SS,O5 RKOR3MDSN%MFF0R< Neutrino Core destroyed. T-07 Excavator destroyed. Slug penetrates Wall. Penetrated by Slug. Slug penetrates B-75 Beast. Penetrated by Slug. Slug penetrates K-01 Serf. Knocked back. Slug penetrates H-66 Slayer. Penetrated by Slug. Wave Gun destroyed. ALERT: Persistent threat to transfer network, dispatching additional forces. Penetrated by Slug. Neutrino Core destroyed. Map ----- +----------------------------------------------------+ | ??########## ######### #???# #?????????????????? | | ???????????#####???????# #???# #?????????????????? | | ???????????????????????# #???# #?????????????????? | | ???????????????????????# #???# #?????????????????? | | ???????????????????????# #???# #?????????????????? | | ???????????????????????# #???# #?????????????????? | | ??????????????????????## ###?# #?????????????????? | | ??????????????????????# T#?# #?????????????????? | | ??????????????????????## ##?# #?????????????????? | | ???????????????????????# #??# #?????????????????? | | ???????????????????????####??# #?????????????????? | | ?????????????????????????????# #?????????????????? | | ?????????????????????????????# #?????????????????? | | ?????????????????????????????#%#?????????????????? | | ?????????????????????????????#!#??###????????????? | | ?????????????????????????????#=#######???????????? | | ???????????????????????????### ###/## #??????????? | | ???????????????????????????#"%u=R= "" ???????? | | ???????????????????????????#%"ww%!% R " "??????? | | ???????????????????????????# %%!!*% !! ?????? | | ############################ =*%%**%% #????? | | ############################ *%%[=!h #????? | | !==% ?????? | | % % % ?????? | | k * % =*] % ?????? | | u %%% @ ! | |??????? | | %! u =% %% %??????? | | ############################ = BB ???????? | | ############################ BB ???????? | | ???????????????????????????# ?????????? | | ???????????????????????????# ??????????? | | ???????????????????????????# ?????????? | | ????????????????????????????##"## #"""##?????????? | | ?????????????????????????????????## ? ##?????????? | | ?????????????????????????????????????????????????? | | | | | | | | | | | | | | | | | | | | | | | | | | | | | | | +----------------------------------------------------+ Best States ------------- Heat Dissipation 78 Energy Generation 37 Energy Capacity 700 Matter Stores 300 Matter Capacity 300 Sight Range 16 Robot Scan Range 15 Terrain Scan Range 14 Terrain Scan Density 10 EM Shielding 2 Armor Coverage 800 Evasion (%) 65 Recoil Reduction 4 Matter Filtering 50 Defensive Hacking 10 Item Schematics ----------------- None Robot Schematics ------------------ None Fabricated ------------ Nothing Repaired ---------- Nothing Alien Tech Used ----------------- None Achievements -------------- A New Friend Challenges ------------ None Game ------ Seed HybridRemoteRouter Manual? 0 Play Time 01:01:56 Cumulative 32.4 hours Start 2025.09.25 @ 19:32:33 End 2025.09.25 @ 20:41:05 Sessions 1 Manual Loads 0 Difficulty Rogue Special Mode None Game No. 34 Rogue 34 Adventurer 0 Explorer 0 Win Type - Total 0 Types 0/0/0/0/0/0/0/0/0/0 Lore% 33 Gallery% 34 Achievement% 35 Wizard Run 0 Options --------- Layout 1 ASCII 0 Keyboard 0 Movement Numpad Keybinds 0 Fullscreen 1 Font 32/SmallcapsGlow Map View 50x35 Zoom Use 0% Tactical HUD 0 Map Filters NONE Filters NONE Steam 1 RUN: 47da246a-6f66-4f32-abaf-4ad4e618a473